[Event "CZE-ch U10 2020"]
[Site "Kouty nad Desnou"]
[Date "2020.03.07"]
[Round "1.10"]
[White "Svadlenka, Michal"]
[Black "Bulawa, Adam"]
[Result "0-1"]
[ECO "B12"]
[WhiteElo "1309"]
[BlackElo "1014"]
[Annotator "NA RC"]
[PlyCount "82"]
[EventDate "2020.03.07"]
[EventCountry "CZE"]
[SourceTitle "playchess.com"]
[Source "ChessBase"]
[SourceQuality "1"]
[TimeControl "5400+30"]

1. e4 {[%emt 0:00:00]} c6 {[%emt 0:00:00]} 2. d4 {[%emt 0:00:01]} d5 {[%emt 0:00:00]} 3. e5 {[%emt 0:00:30]} Bf5 {[%emt 0:00:15]} 4. c3 {[%emt 0:00:59]} e6 {[%emt 0:00:37]} 5. g4 {[%emt 0:02:16]} Bg6 {[%emt 0:00:13]} 6. h4 {[%emt 0:00:24]} h5 {[%emt 0:00:16]} 7. g5 {[%emt 0:00:37]} Nd7 {[%emt 0:00:46]} 8. Ne2 {[%emt 0:01:29]} Ne7 {[%emt 0:01:06]} 9. Nf4 {[%emt 0:01:59]} Bf5 {[%emt 0:00:24]} 10. Nxh5 {[%emt 0:01:29]} Be4 {[%emt 0:01:18]} 11. Rh2 {[%emt 0:04:34]} Nf5 {[%emt 0:00:56]} 12. Qg4 {[%emt 0:03:58]} g6 {[%emt 0:02:30]} 13. Nf6+ {[%emt 0:00:59]} Nxf6 {[%emt 0:00:06]} 14. gxf6 {[%emt 0:00:17]} Qb6 {[%emt 0:01:45]} 15. f3 {[%emt 0:01:02]} Bxb1 {[%emt 0:01:00]} 16. Rxb1 {[%emt 0:00:17]} O-O-O {[%emt 0:01:53]} 17. Bd3 {[%emt 0:02:43]} Bh6 {[%emt 0:01:09]} 18. Bxh6 {[%emt 0:00:44]} Nxh6 {[%emt 0:00:31]} 19. Qf4 {[%emt 0:01:45]} Nf5 {[%emt 0:04:24]} 20. h5 {[%emt 0:04:56]} Rdg8 {[%emt 0:03:23]} 21. Kd2 {[%emt 0:03:56]} g5 {[%emt 0:01:32]} 22. Qg4 {[%emt 0:00:26]} Nh6 {[%emt 0:02:43]} 23. Qg3 {[%emt 0:01:11]} g4 {[%emt 0:00:58]} 24. f4 {[%emt 0:00:53]} Qd8 {[%emt 0:02:33]} 25. Rg1 {[%emt 0:01:12]} Nf5 {[%emt 0:00:56]} 26. Bxf5 {[%emt 0:00:30]} exf5 {[%emt 0:00:07]} 27. h6 {[%emt 0:01:33]} Rh7 {[%emt 0:01:13]} 28. Rh5 {[%emt 0:03:36]} Qd7 {[%emt 0:00:39]} 29. Qh4 {[%emt 0:00:28]} Rg6 {[%emt 0:02:17]} 30. Rg3 {[%emt 0:01:34]} b6 {[%emt 0:02:28]} 31. Qh1 {[%emt 0:00:18]} Kd8 {[%emt 0:01:59]} 32. Rg2 {[%emt 0:00:19]} Kc7 {[%emt 0:01:15]} 33. Rgh2 {[%emt 0:00:21]} Kb7 {[%emt 0:03:33]} 34. Ke2 {[%emt 0:00:21]} Kc7 {[%emt 0:01:55]} 35. Kf2 {[%emt 0:00:19]} g3+ {[%emt 0:01:00]} 36. Kf3 {[%emt 0:00:24]} gxh2 {[%emt 0:00:06]} 37. Qxh2 {[%emt 0:00:23]} c5 {[%emt 0:01:57]} 38. b3 {[%emt 0:03:08]} c4 {[%emt 0:00:36]} 39. bxc4 {[%emt 0:00:21]} dxc4 {[%emt 0:00:17]} 40. Qb2 {[%emt 0:00:17]} Qd5+ {[%emt 0:00:20]} 41. Ke3 {[%emt 0:00:44]} Qe4+ {[%emt 0:00:16]} 0-1

[Event "CZE-ch U10 2020"]
[Site "Kouty nad Desnou"]
[Date "2020.03.07"]
[Round "1.12"]
[White "Stefaniv, Vladyslav"]
[Black "Stejskal, Jakub"]
[Result "1-0"]
[ECO "C46"]
[WhiteElo "1265"]
[BlackElo "1557"]
[Annotator "NA RC"]
[PlyCount "41"]
[EventDate "2020.03.07"]
[EventCountry "CZE"]
[SourceTitle "playchess.com"]
[Source "ChessBase"]
[SourceQuality "1"]
[TimeControl "5400+30"]

1. e4 {[%emt 0:00:00]} e5 {[%emt 0:00:00]} 2. Nf3 {[%emt 0:00:00]} Nc6 {[%emt 0:00:01]} 3. Nc3 {[%emt 0:00:00]} Bc5 {[%emt 0:00:48]} 4. Nxe5 {[%emt 0:00:56]} Nxe5 {[%emt 0:00:48]} 5. d4 {[%emt 0:00:13]} Bd6 {[%emt 0:00:57]} 6. dxe5 {[%emt 0:00:49]} Bxe5 {[%emt 0:00:27]} 7. Bc4 {[%emt 0:06:40]} d6 {[%emt 0:01:39]} 8. Be3 {[%emt 0:08:28]} Bxc3+ {[%emt 0:01:54]} 9. bxc3 {[%emt 0:00:48]} Nf6 {[%emt 0:00:16]} 10. Qd3 {[%emt 0:04:12]} Be6 {[%emt 0:01:24]} 11. Bb3 {[%emt 0:01:38]} O-O {[%emt 0:00:37]} 12. O-O {[%emt 0:01:49]} Qe7 {[%emt 0:04:04]} 13. Bg5 {[%emt 0:04:15]} Rad8 {[%emt 0:00:42]} 14. Rad1 {[%emt 0:03:50]} c6 {[%emt 0:01:01]} 15. f4 {[%emt 0:03:03]} d5 {[%emt 0:00:30]} 16. e5 {[%emt 0:00:54]} Qc5+ {[%emt 0:00:25]} 17. Qd4 {[%emt 0:02:10]} Qxd4+ {[%emt 0:01:49]} 18. cxd4 {[%emt 0:00:59]} h6 {[%emt 0:01:13]} 19. exf6 {[%emt 0:03:54]} hxg5 {[%emt 0:01:30]} 20. fxg5 {[%emt 0:05:48]} gxf6 {[%emt 0:00:22]} 21. gxf6 {[%emt 0:00:14]} 1-0

[Event "CZE-ch U10 2020"]
[Site "Kouty nad Desnou"]
[Date "2020.03.08"]
[Round "2.1"]
[White "Bouska, Jiri"]
[Black "Gorej, Vojtech"]
[Result "0-1"]
[ECO "A52"]
[WhiteElo "1643"]
[BlackElo "1360"]
[Annotator "NA"]
[PlyCount "72"]
[EventDate "2020.03.07"]
[EventCountry "CZE"]
[SourceTitle "playchess.com"]
[Source "ChessBase"]
[SourceQuality "1"]
[TimeControl "5400+30"]

1. d4 Nf6 2. c4 e5 3. dxe5 Ng4 4. Nf3 Bc5 5. e3 Nc6 6. h3 Ngxe5 7. Nxe5 Nxe5 8. Be2 d6 9. b3 Nf3+ 10. Bxf3 Qf6 11. Nc3 Bb4 12. Bd2 Bxc3 13. Rc1 Be5 14. Qc2 Qe7 15. Bc3 O-O 16. Bxe5 dxe5 17. O-O c6 18. Rfd1 Be6 19. Qe4 f6 20. c5 Rad8 21. Qb4 Bc8 22. Rd6 Rxd6 23. cxd6 Qd7 24. e4 g6 25. Rd1 h5 26. Qc4+ Kg7 27. a4 Rd8 28. a5 Qe6 29. a6 Qxc4 30. bxc4 b6 31. g4 h4 32. c5 bxc5 33. Rc1 Bxa6 34. Rxc5 Bb5 35. g5 Rxd6 36. gxf6+ Kxf6 0-1

[Event "CZE-ch U10 2020"]
[Site "Kouty nad Desnou"]
[Date "2020.03.08"]
[Round "2.2"]
[White "Vana, Jan"]
[Black "Delgerdalai, Bayarjavkhlan"]
[Result "0-1"]
[ECO "B90"]
[WhiteElo "1268"]
[BlackElo "1553"]
[Annotator "NA"]
[PlyCount "114"]
[EventDate "2020.03.07"]
[EventCountry "CZE"]
[SourceTitle "playchess.com"]
[Source "ChessBase"]
[SourceQuality "1"]
[TimeControl "5400+30"]

1. e4 {[%emt 0:00:08]} c5 {[%emt 0:00:00]} 2. Nf3 {[%emt 0:00:36]} d6 {[%emt 0:00:00]} 3. d4 {[%emt 0:00:34]} cxd4 {[%emt 0:00:02]} 4. Nxd4 {[%emt 0:01:13]} Nf6 {[%emt 0:00:15]} 5. Nc3 {[%emt 0:00:58]} a6 {[%emt 0:00:18]} 6. f3 {[%emt 0:03:39]} e6 {[%emt 0:01:24]} 7. Bc4 {[%emt 0:00:57]} Be7 {[%emt 0:01:07]} 8. Bb3 {[%emt 0:01:26]} Qc7 {[%emt 0:01:39]} 9. Be3 {[%emt 0:00:48]} Nc6 {[%emt 0:01:13]} 10. Qd2 {[%emt 0:01:18]} b5 {[%emt 0:02:44]} 11. g4 {[%emt 0:02:31]} Nxd4 {[%emt 0:01:59]} 12. Bxd4 {[%emt 0:00:58]} O-O {[%emt 0:02:07]} 13. h4 {[%emt 0:01:52]} b4 {[%emt 0:02:49]} 14. Na4 {[%emt 0:01:18]} a5 {[%emt 0:05:31]} 15. O-O-O {[%emt 0:02:43]} Ba6 {[%emt 0:08:40]} 16. Bxf6 {[%emt 0:02:27]} Bxf6 {[%emt 0:07:56]} 17. Qxd6 {[%emt 0:02:25]} Qxd6 {[%emt 0:00:12]} 18. Rxd6 {[%emt 0:00:13]} Be2 {[%emt 0:00:22]} 19. Rh3 {[%emt 0:01:32]} Bf1 {[%emt 0:07:02]} 20. Rh1 {[%emt 0:03:29]} Bg2 {[%emt 0:00:42]} 21. Rg1 {[%emt 0:06:27]} Bxf3 {[%emt 0:00:54]} 22. Nb6 {[%emt 0:05:28]} Rfd8 {[%emt 0:05:19]} 23. Rxd8+ {[%emt 0:05:57]} Rxd8 {[%emt 0:00:07]} 24. Nc4 {[%emt 0:00:16]} Bxh4 {[%emt 0:04:47]} 25. e5 {[%emt 0:07:05]} Bg5+ {[%emt 0:01:08]} 26. Kb1 {[%emt 0:01:47]} Bxg4 {[%emt 0:03:30]} 27. c3 {[%emt 0:01:20]} h5 {[%emt 0:00:48]} 28. Nxa5 {[%emt 0:00:48]} bxc3 {[%emt 0:00:18]} 29. bxc3 {[%emt 0:00:09]} Bf4 {[%emt 0:01:39]} 30. Nc6 {[%emt 0:00:47]} Rd3 {[%emt 0:04:20]} 31. Kb2 {[%emt 0:03:51]} g5 {[%emt 0:02:36]} 32. a4 {[%emt 0:01:30]} Bf3 {[%emt 0:01:10]} 33. Nd4 {[%emt 0:01:43]} Bb7 {[%emt 0:01:43]} 34. Bc4 {[%emt 0:01:22]} Rd2+ {[%emt 0:01:52]} 35. Kb3 {[%emt 0:00:34]} g4 {[%emt 0:00:50]} 36. Re1 {[%emt 0:04:18]} h4 {[%emt 0:01:18]} 37. a5 {[%emt 0:00:54]} h3 {[%emt 0:01:33]} 38. a6 {[%emt 0:01:07]} Ba8 {[%emt 0:02:06]} 39. Bb5 {[%emt 0:01:19]} Rxd4 {[%emt 0:01:07]} 40. cxd4 {[%emt 0:00:23]} h2 {[%emt 0:00:05]} 41. Bd7 {[%emt 0:00:37]} g3 {[%emt 0:01:16]} 42. Bc8 {[%emt 0:01:22]} g2 {[%emt 0:00:20]} 43. Bb7 {[%emt 0:00:26]} g1=Q {[%emt 0:00:16]} 44. Re2 {[%emt 0:00:21]} h1=Q {[%emt 0:00:36]} 45. Bxh1 {[%emt 0:00:28]} Bxh1 {[%emt 0:00:07]} 46. a7 {[%emt 0:00:21]} Qb1+ {[%emt 0:00:07]} 47. Kc4 {[%emt 0:00:09]} Qf1 {[%emt 0:00:25]} 48. Kd3 {[%emt 0:00:14]} Be4+ {[%emt 0:00:31]} 49. Kxe4 {[%emt 0:00:12]} Qxe2+ {[%emt 0:00:06]} 50. Kxf4 {[%emt 0:00:08]} Qa6 {[%emt 0:00:02]} 51. Kg5 {[%emt 0:00:15]} Qxa7 {[%emt 0:00:05]} 52. Kf6 {[%emt 0:00:08]} Qxd4 {[%emt 0:00:11]} 53. Kg5 {[%emt 0:00:12]} Qxe5+ {[%emt 0:00:03]} 54. Kg4 {[%emt 0:00:10]} Qe3 {[%emt 0:00:14]} 55. Kh5 {[%emt 0:00:09]} Kg7 {[%emt 0:00:28]} 56. Kh4 {[%emt 0:00:11]} f5 {[%emt 0:00:09]} 57. Kh5 {[%emt 0:00:08]} Qh6# 0-1

[Event "CZE-ch U10 2020"]
[Site "Kouty nad Desnou"]
[Date "2020.03.08"]
[Round "2.3"]
[White "Chon, Jeremy"]
[Black "Stefaniv, Vladyslav"]
[Result "1-0"]
[ECO "A41"]
[WhiteElo "1449"]
[BlackElo "1265"]
[Annotator "NA"]
[PlyCount "58"]
[EventDate "2020.03.07"]
[EventCountry "CZE"]
[SourceTitle "playchess.com"]
[Source "ChessBase"]
[SourceQuality "1"]
[TimeControl "5400+30"]

1. d4 {[%emt 0:00:00]} d6 {[%emt 0:00:00]} 2. Nf3 {[%emt 0:00:02]} g6 {[%emt 0:01:26]} 3. b3 {[%emt 0:01:37]} Bg7 {[%emt 0:00:47]} 4. Bb2 {[%emt 0:00:28]} Nf6 {[%emt 0:04:55]} 5. e3 {[%emt 0:01:08]} O-O {[%emt 0:01:56]} 6. Bd3 {[%emt 0:00:22]} b6 {[%emt 0:14:32]} 7. O-O {[%emt 0:02:11]} Bb7 {[%emt 0:00:55]} 8. Nbd2 {[%emt 0:03:26]} Nbd7 {[%emt 0:04:25]} 9. Qe2 {[%emt 0:10:42]} c5 {[%emt 0:04:36]} 10. c4 {[%emt 0:08:06]} d5 {[%emt 0:14:31]} 11. Rac1 {[%emt 0:09:52]} Rc8 {[%emt 0:08:52]} 12. Rc2 {[%emt 0:15:07]} Rc6 {[%emt 0:18:12]} 13. Ne5 {[%emt 0:10:23]} Nxe5 {[%emt 0:01:54]} 14. dxe5 {[%emt 0:00:48]} Ne8 {[%emt 0:01:45]} 15. cxd5 {[%emt 0:00:44]} Rc7 {[%emt 0:04:13]} 16. e4 {[%emt 0:02:20]} f6 {[%emt 0:08:02]} 17. e6 {[%emt 0:03:23]} Nd6 {[%emt 0:00:50]} 18. Rfc1 {[%emt 0:05:00]} Qb8 {[%emt 0:03:12]} 19. b4 {[%emt 0:08:32]} Rfc8 {[%emt 0:00:41]} 20. bxc5 {[%emt 0:00:16]} Rxc5 {[%emt 0:00:50]} 21. Rxc5 {[%emt 0:00:16]} bxc5 {[%emt 0:01:46]} 22. Ba3 {[%emt 0:02:57]} f5 {[%emt 0:02:07]} 23. Rxc5 {[%emt 0:04:43]} Rxc5 {[%emt 0:00:08]} 24. Bxc5 {[%emt 0:00:05]} Be5 {[%emt 0:00:49]} 25. g3 {[%emt 0:01:47]} fxe4 {[%emt 0:00:24]} 26. Bxe4 {[%emt 0:01:19]} Qf8 {[%emt 0:00:39]} 27. Bxd6 {[%emt 0:00:54]} Bxd6 {[%emt 0:00:26]} 28. Qf3 {[%emt 0:00:41]} Qe8 {[%emt 0:00:29]} 29. Nc4 {[%emt 0:01:29]} Qf8 1-0

[Event "CZE-ch U10 2020"]
[Site "Kouty nad Desnou"]
[Date "2020.03.08"]
[Round "2.4"]
[White "Alidis, Myron"]
[Black "Komarek, Tobias"]
[Result "1-0"]
[ECO "C47"]
[WhiteElo "1395"]
[BlackElo "1235"]
[Annotator "NA"]
[PlyCount "151"]
[EventDate "2020.03.07"]
[EventCountry "CZE"]
[SourceTitle "playchess.com"]
[Source "ChessBase"]
[SourceQuality "1"]
[TimeControl "5400+30"]

1. e4 {[%emt 0:00:00]} e5 {[%emt 0:00:00]} 2. Nf3 {[%emt 0:00:00]} Nc6 {[%emt 0:00:00]} 3. Nc3 {[%emt 0:00:00]} Nf6 {[%emt 0:00:00]} 4. d4 {[%emt 0:00:00]} exd4 {[%emt 0:00:04]} 5. Nxd4 {[%emt 0:00:05]} Bc5 {[%emt 0:00:14]} 6. Be3 {[%emt 0:00:14]} Bb6 {[%emt 0:00:19]} 7. f3 {[%emt 0:00:26]} O-O {[%emt 0:00:15]} 8. Qd2 {[%emt 0:00:12]} Re8 {[%emt 0:00:21]} 9. O-O-O {[%emt 0:00:10]} d5 {[%emt 0:00:13]} 10. Nxc6 {[%emt 0:01:04]} bxc6 {[%emt 0:00:21]} 11. Bxb6 {[%emt 0:00:15]} axb6 {[%emt 0:00:08]} 12. a3 {[%emt 0:00:19]} Bb7 {[%emt 0:00:17]} 13. Bd3 {[%emt 0:01:11]} d4 {[%emt 0:03:23]} 14. Ne2 {[%emt 0:00:11]} c5 {[%emt 0:00:15]} 15. Bc4 {[%emt 0:00:16]} Ba6 {[%emt 0:02:26]} 16. Bxa6 {[%emt 0:00:08]} Rxa6 {[%emt 0:00:07]} 17. c3 {[%emt 0:00:09]} Ra8 {[%emt 0:01:34]} 18. cxd4 {[%emt 0:00:13]} cxd4 {[%emt 0:00:21]} 19. Qxd4 {[%emt 0:00:09]} Qe7 {[%emt 0:01:24]} 20. Qb4 {[%emt 0:00:27]} Qe6 {[%emt 0:01:48]} 21. Nf4 {[%emt 0:01:00]} Qe5 {[%emt 0:00:45]} 22. Nd5 {[%emt 0:00:39]} Nxd5 {[%emt 0:02:42]} 23. Rxd5 {[%emt 0:00:07]} Qf4+ {[%emt 0:01:10]} 24. Qd2 {[%emt 0:00:12]} Qf6 {[%emt 0:00:24]} 25. Rd1 {[%emt 0:00:56]} h6 {[%emt 0:01:25]} 26. Qc3 {[%emt 0:03:27]} Qxc3+ {[%emt 0:03:02]} 27. bxc3 {[%emt 0:00:05]} Rxa3 {[%emt 0:00:21]} 28. Kb2 {[%emt 0:00:05]} Raa8 {[%emt 0:00:31]} 29. Rd7 {[%emt 0:00:13]} c5 {[%emt 0:00:26]} 30. Rb7 {[%emt 0:00:27]} Reb8 {[%emt 0:00:22]} 31. Rdd7 {[%emt 0:00:15]} Rd8 {[%emt 0:02:23]} 32. c4 {[%emt 0:02:34]} Rab8 {[%emt 0:02:01]} 33. Rxd8+ {[%emt 0:00:25]} Rxd8 {[%emt 0:00:09]} 34. Kc3 {[%emt 0:00:06]} Rd6 {[%emt 0:00:58]} 35. e5 {[%emt 0:00:10]} Re6 {[%emt 0:00:44]} 36. f4 {[%emt 0:00:09]} g5 {[%emt 0:00:59]} 37. g3 {[%emt 0:00:08]} f6 {[%emt 0:02:33]} 38. exf6 {[%emt 0:00:07]} Rxf6 {[%emt 0:00:10]} 39. fxg5 {[%emt 0:00:16]} hxg5 {[%emt 0:00:13]} 40. Kb3 {[%emt 0:00:08]} Kf8 {[%emt 0:02:06]} 41. Ka4 {[%emt 0:00:25]} Rf2 {[%emt 0:02:26]} 42. Rxb6 {[%emt 0:00:13]} Kf7 {[%emt 0:00:25]} 43. h4 {[%emt 0:01:21]} gxh4 {[%emt 0:00:35]} 44. gxh4 {[%emt 0:00:07]} Rf4 {[%emt 0:00:17]} 45. Kb5 {[%emt 0:00:46]} Rxh4 {[%emt 0:00:36]} 46. Kxc5 {[%emt 0:00:07]} Ke7 {[%emt 0:00:23]} 47. Kd5 {[%emt 0:02:23]} Kd8 {[%emt 0:01:32]} 48. c5 {[%emt 0:00:52]} Rh5+ {[%emt 0:00:53]} 49. Kc6 {[%emt 0:00:29]} Rh6+ {[%emt 0:00:50]} 50. Kb7 {[%emt 0:00:11]} Rh7+ {[%emt 0:00:20]} 51. Kb8 {[%emt 0:00:24]} Rh5 {[%emt 0:00:48]} 52. c6 {[%emt 0:01:11]} Rc5 {[%emt 0:01:02]} 53. Kb7 {[%emt 0:00:14]} Rc4 {[%emt 0:00:21]} 54. Rb3 {[%emt 0:00:19]} Rc1 {[%emt 0:01:04]} 55. Rd3+ {[%emt 0:01:14]} Ke7 {[%emt 0:00:29]} 56. c7 {[%emt 0:00:25]} Rb1+ {[%emt 0:00:26]} 57. Kc8 {[%emt 0:00:08]} Rc1 {[%emt 0:00:26]} 58. Re3+ {[%emt 0:00:18]} Kd6 {[%emt 0:00:12]} 59. Kd8 {[%emt 0:00:04]} Rxc7 {[%emt 0:00:25]} 60. Rd3+ {[%emt 0:00:06]} Kc6 {[%emt 0:00:41]} 61. Rc3+ {[%emt 0:00:06]} Kd5 {[%emt 0:01:09]} 62. Rxc7 {[%emt 0:00:15]} Ke5 {[%emt 0:00:20]} 63. Rd7 {[%emt 0:00:09]} Ke4 {[%emt 0:00:12]} 64. Ke7 {[%emt 0:00:07]} Ke5 {[%emt 0:00:13]} 65. Rd1 {[%emt 0:00:09]} Ke4 {[%emt 0:00:20]} 66. Ke6 {[%emt 0:00:09]} Kf4 {[%emt 0:00:15]} 67. Re1 {[%emt 0:00:05]} Kf3 {[%emt 0:00:20]} 68. Kf5 {[%emt 0:00:18]} Kf2 {[%emt 0:00:11]} 69. Re4 {[%emt 0:00:13]} Kf3 {[%emt 0:00:36]} 70. Ke5 {[%emt 0:00:13]} Kf2 {[%emt 0:00:17]} 71. Kf4 {[%emt 0:00:08]} Kg2 {[%emt 0:00:11]} 72. Re2+ {[%emt 0:00:13]} Kf1 {[%emt 0:00:33]} 73. Kf3 {[%emt 0:00:05]} Kg1 {[%emt 0:00:10]} 74. Ra2 {[%emt 0:00:08]} Kh1 {[%emt 0:00:12]} 75. Kg3 {[%emt 0:00:08]} Kg1 {[%emt 0:00:23]} 76. Ra1# {[%emt 0:00:06]} 1-0

[Event "CZE-ch U10 2020"]
[Site "Kouty nad Desnou"]
[Date "2020.03.08"]
[Round "2.5"]
[White "Krautschneider, Daniel Jan"]
[Black "Roubal, Matyas"]
[Result "1-0"]
[ECO "C55"]
[WhiteElo "1236"]
[BlackElo "1380"]
[Annotator "NA"]
[PlyCount "147"]
[EventDate "2020.03.07"]
[EventCountry "CZE"]
[SourceTitle "playchess.com"]
[Source "ChessBase"]
[SourceQuality "1"]
[TimeControl "5400+30"]

1. e4 {[%emt 0:00:00]} e5 {[%emt 0:00:00]} 2. Nf3 {[%emt 0:00:00]} Nc6 {[%emt 0:00:00]} 3. Bc4 {[%emt 0:00:00]} Nf6 {[%emt 0:00:00]} 4. c3 {[%emt 0:00:23]} d5 {[%emt 0:03:22]} 5. exd5 {[%emt 0:00:13]} Nxd5 {[%emt 0:00:12]} 6. d4 {[%emt 0:00:09]} exd4 {[%emt 0:00:39]} 7. cxd4 {[%emt 0:00:10]} Bb4+ {[%emt 0:01:55]} 8. Bd2 {[%emt 0:00:13]} Qe7+ {[%emt 0:01:33]} 9. Qe2 {[%emt 0:01:08]} Qxe2+ {[%emt 0:00:42]} 10. Bxe2 {[%emt 0:00:08]} O-O {[%emt 0:01:05]} 11. O-O {[%emt 0:00:07]} Re8 {[%emt 0:00:42]} 12. Bc4 {[%emt 0:00:17]} Nb6 {[%emt 0:03:13]} 13. Bb5 {[%emt 0:00:18]} Bxd2 {[%emt 0:00:47]} 14. Nbxd2 {[%emt 0:00:10]} Bd7 {[%emt 0:00:21]} 15. Rfe1 {[%emt 0:00:58]} a6 {[%emt 0:01:00]} 16. Bd3 {[%emt 0:00:49]} Rad8 {[%emt 0:06:55]} 17. h3 {[%emt 0:01:46]} Be6 {[%emt 0:02:18]} 18. Re4 {[%emt 0:00:54]} Bd5 {[%emt 0:02:50]} 19. Rxe8+ {[%emt 0:01:30]} Rxe8 {[%emt 0:00:03]} 20. Kf1 {[%emt 0:00:31]} g6 {[%emt 0:03:36]} 21. Rc1 {[%emt 0:00:54]} Re7 {[%emt 0:02:28]} 22. a3 {[%emt 0:01:11]} f5 {[%emt 0:00:30]} 23. Nc4 {[%emt 0:01:25]} Bxf3 {[%emt 0:06:51]} 24. gxf3 {[%emt 0:00:13]} Nxd4 {[%emt 0:00:47]} 25. Na5 {[%emt 0:02:06]} c6 {[%emt 0:01:42]} 26. Kg2 {[%emt 0:01:50]} Kg7 {[%emt 0:01:30]} 27. Rd1 {[%emt 0:00:47]} Nd5 {[%emt 0:01:23]} 28. Bxa6 {[%emt 0:03:38]} Nf4+ {[%emt 0:08:34]} 29. Kg3 {[%emt 0:01:08]} Nfe2+ {[%emt 0:02:49]} 30. Bxe2 {[%emt 0:00:22]} Nxe2+ {[%emt 0:00:04]} 31. Kg2 {[%emt 0:00:18]} Kh6 {[%emt 0:03:05]} 32. Re1 {[%emt 0:01:45]} Nf4+ {[%emt 0:01:21]} 33. Kf1 {[%emt 0:00:46]} Rc7 {[%emt 0:01:23]} 34. Rc1 {[%emt 0:00:24]} Nxh3 {[%emt 0:00:31]} 35. b4 {[%emt 0:00:08]} Nf4 {[%emt 0:01:04]} 36. b5 {[%emt 0:00:23]} Nd3 {[%emt 0:00:41]} 37. Rc3 {[%emt 0:00:50]} Ne5 {[%emt 0:00:44]} 38. Re3 {[%emt 0:01:33]} Re7 {[%emt 0:01:14]} 39. f4 {[%emt 0:00:46]} b6 {[%emt 0:02:32]} 40. Nb3 {[%emt 0:00:59]} cxb5 {[%emt 0:00:09]} 41. Rxe5 {[%emt 0:00:27]} Ra7 {[%emt 0:00:08]} 42. Rxb5 {[%emt 0:00:58]} Rxa3 {[%emt 0:00:05]} 43. Nd4 {[%emt 0:05:18]} Kh5 {[%emt 0:02:23]} 44. Ne6 {[%emt 0:03:18]} Kg4 {[%emt 0:00:43]} 45. Kg2 {[%emt 0:07:42]} h6 {[%emt 0:02:29]} 46. Rxb6 {[%emt 0:01:52]} g5 {[%emt 0:04:39]} 47. fxg5 {[%emt 0:00:39]} hxg5 {[%emt 0:00:10]} 48. Rb4+ {[%emt 0:01:30]} f4 {[%emt 0:01:57]} 49. Nd4 {[%emt 0:01:20]} Ra2 {[%emt 0:01:51]} 50. Nf3 {[%emt 0:01:59]} Ra3 {[%emt 0:02:46]} 51. Ne5+ {[%emt 0:01:40]} Kh4 {[%emt 0:01:14]} 52. Rb8 {[%emt 0:02:17]} g4 {[%emt 0:01:34]} 53. Rh8+ {[%emt 0:00:35]} Kg5 {[%emt 0:00:07]} 54. Rg8+ {[%emt 0:00:07]} Kf5 {[%emt 0:00:04]} 55. Nxg4 {[%emt 0:00:42]} Ra6 {[%emt 0:01:38]} 56. Nh2 {[%emt 0:01:25]} Ra2 {[%emt 0:00:45]} 57. Rf8+ {[%emt 0:01:39]} Ke4 {[%emt 0:01:09]} 58. Ng4 {[%emt 0:00:46]} Ra6 {[%emt 0:01:52]} 59. f3+ {[%emt 0:01:25]} Kd5 {[%emt 0:00:19]} 60. Rxf4 {[%emt 0:00:26]} Rg6 {[%emt 0:00:12]} 61. Kg3 {[%emt 0:00:48]} Rg8 {[%emt 0:00:16]} 62. Rf5+ {[%emt 0:00:51]} Ke6 {[%emt 0:00:05]} 63. Kf4 {[%emt 0:00:18]} Rg7 {[%emt 0:00:14]} 64. Rf6+ {[%emt 0:00:47]} Ke7 {[%emt 0:00:07]} 65. Kf5 {[%emt 0:00:12]} Ke8 {[%emt 0:00:09]} 66. Nh6 {[%emt 0:00:33]} Ra7 {[%emt 0:00:09]} 67. f4 {[%emt 0:00:21]} Rb7 {[%emt 0:00:07]} 68. Kg6 {[%emt 0:00:09]} Rb1 {[%emt 0:00:07]} 69. f5 {[%emt 0:01:27]} Rg1+ {[%emt 0:00:07]} 70. Kh7 {[%emt 0:00:19]} Rg5 {[%emt 0:00:09]} 71. Rg6 {[%emt 0:00:12]} Rh5 {[%emt 0:00:08]} 72. f6 {[%emt 0:00:43]} Rxh6+ {[%emt 0:00:13]} 73. Kxh6 {[%emt 0:00:42]} Kf7 {[%emt 0:00:06]} 74. Kg5 {[%emt 0:00:08]} 1-0

[Event "CZE-ch U10 2020"]
[Site "Kouty nad Desnou"]
[Date "2020.03.08"]
[Round "2.6"]
[White "Bulawa, Adam"]
[Black "Svadlenka, Dominik"]
[Result "0-1"]
[ECO "B13"]
[WhiteElo "1014"]
[BlackElo "1410"]
[Annotator "NA"]
[PlyCount "72"]
[EventDate "2020.03.07"]
[EventCountry "CZE"]
[SourceTitle "playchess.com"]
[Source "ChessBase"]
[SourceQuality "1"]
[TimeControl "5400+30"]

1. e4 {[%emt 0:00:00]} c6 {[%emt 0:00:00]} 2. d4 {[%emt 0:00:00]} d5 {[%emt 0:00:00]} 3. exd5 {[%emt 0:00:00]} cxd5 4. Nc3 {[%emt 0:00:06]} Nc6 {[%emt 0:00:28]} 5. Nf3 {[%emt 0:00:14]} Bg4 {[%emt 0:00:37]} 6. h3 {[%emt 0:00:40]} Bh5 {[%emt 0:00:20]} 7. g4 Bg6 {[%emt 0:00:21]} 8. Ne5 {[%emt 0:01:29]} Nf6 {[%emt 0:03:05]} 9. Nxc6 bxc6 10. f3 {[%emt 0:02:59]} Qc7 {[%emt 0:01:09]} 11. Be3 {[%emt 0:01:19]} e6 {[%emt 0:02:24]} 12. a3 {[%emt 0:01:21]} Rb8 {[%emt 0:01:33]} 13. b4 {[%emt 0:00:54]} Bd6 {[%emt 0:02:00]} 14. Qd2 O-O 15. b5 {[%emt 0:02:36]} c5 {[%emt 0:10:55]} 16. dxc5 {[%emt 0:02:25]} Bxc5 {[%emt 0:00:25]} 17. Bf4 {[%emt 0:03:59]} e5 {[%emt 0:01:09]} 18. Bh2 {[%emt 0:01:46]} Bd4 {[%emt 0:00:17]} 19. O-O-O {[%emt 0:12:24]} Bxc3 {[%emt 0:01:08]} 20. Qe2 {[%emt 0:00:51]} Rfc8 {[%emt 0:01:18]} 21. Kb1 {[%emt 0:00:48]} a6 {[%emt 0:04:26]} 22. Qf2 {[%emt 0:03:36]} axb5 {[%emt 0:01:16]} 23. Bd3 {[%emt 0:02:22]} Bxd3 {[%emt 0:00:39]} 24. Rxd3 {[%emt 0:00:34]} b4 {[%emt 0:00:29]} 25. axb4 {[%emt 0:04:27]} Rxb4+ {[%emt 0:01:34]} 26. Kc1 {[%emt 0:00:17]} Bd4 {[%emt 0:01:15]} 27. Qg2 {[%emt 0:00:33]} Rc4 {[%emt 0:00:15]} 28. Rd2 {[%emt 0:01:24]} Be3 {[%emt 0:00:17]} 29. Kd1 {[%emt 0:01:52]} Bxd2 {[%emt 0:00:40]} 30. Qxd2 {[%emt 0:01:03]} Rxc2 {[%emt 0:00:14]} 31. Qe3 {[%emt 0:01:25]} Rc1+ {[%emt 0:00:36]} 32. Ke2 {[%emt 0:00:15]} Qc2+ {[%emt 0:01:06]} 33. Qd2 {[%emt 0:00:19]} Qc4+ {[%emt 0:00:08]} 34. Qd3 {[%emt 0:01:10]} Rc2+ {[%emt 0:00:07]} 35. Ke1 {[%emt 0:00:13]} Qxd3 {[%emt 0:00:00]} 36. Bf4 {[%emt 0:01:03]} Qe2# 0-1